bitfinex/quotes_BTCUSD_20260125
["timestamp","ask_amount","ask_price","bid_price","bid_amount"]
[1769364787846,0.17512,87539.0,87516.0,1.09107634]
[1769364788067,0.17512,87539.0,87521.0,0.27355259]
[1769364788335,0.17512,87539.0,87519.0,0.27355259]
[1769364788552,0.17512,87539.0,87520.0,0.30090785]
[1769364788757,1.4688,87545.0,87513.0,0.01142687]
[1769364788982,1.8086,87543.0,87512.0,0.0004712]
[1769364789192,3.74464,87541.0,87510.0,0.01142726]
[1769364789401,3.74464,87541.0,87504.0,1.09107634]
[1769364789402,0.0004712,87541.0,87516.0,0.001]
[1769364789612,0.27355259,87526.0,87516.0,0.001]
[1769364789828,3.74464,87539.0,87504.0,1.09107634]
[1769364790059,0.0004712,87541.0,87504.0,1.09107634]
[1769364790271,0.6271,87539.0,87504.0,1.09107634]
[1769364790485,0.5899,87539.0,87504.0,1.09107634]
[1769364790722,0.5899,87539.0,87500.0,7.6939951]
[1769364790931,2.1401,87537.0,87502.0,1.09107634]
[1769364791145,0.14093299,87540.0,87514.0,0.04945957]
[1769364791377,0.00502692,87565.0,87501.0,0.11160278]
[1769364791378,0.016447,87565.0,87522.0,0.04945957]
[1769364791592,0.27355259,87562.0,87529.0,1.05651634]
[1769364791805,0.03769895,87582.0,87540.0,0.37275442]
[1769364792019,1.6821,87601.0,87551.0,0.04945957]
[1769364792235,1.6821,87601.0,87544.0,0.84245635]
[1769364792236,0.28496811,87600.0,87554.0,1.09107634]
[1769364792474,0.32125431,87614.0,87564.0,0.01142021]
[1769364792694,0.27355259,87600.0,87571.0,1.09107634]
[1769364792920,3.74464,87584.0,87565.0,0.03841746]
[1769364793130,0.27355259,87568.0,87550.0,1.11343598]
[1769364793360,0.01141761,87584.0,87565.0,0.00014192]
[1769364793361,3.1467,87583.0,87565.0,0.00014192]
[1769364793578,0.27355259,87585.0,87541.0,0.0384]
[1769364793579,0.01708164,87567.0,87541.0,0.0384]
[1769364793797,0.00014132,87567.0,87541.0,0.0384]
[1769364794020,0.37275442,87560.0,87542.0,0.11160278]
[1769364794247,0.01142021,87564.0,87560.0,0.01]
[1769364794461,0.01141695,87589.0,87561.0,1.09107634]
[1769364794697,0.04770172,87593.0,87550.0,0.13705827]
[1769364794698,0.01141878,87575.0,87550.0,0.37275442]
[1769364794911,0.01141708,87588.0,87557.0,0.13705827]
[1769364795120,0.04770172,87593.0,87572.0,0.13705827]
[1769364795370,0.37275442,87590.0,87558.0,1.20267912]
[1769364795579,0.01141734,87586.0,87559.0,0.13705827]
[1769364795791,0.0570834,87592.0,87559.0,0.13705827]
[1769364795792,0.37275442,87600.0,87573.0,0.13705827]
[1769364796006,0.08833889,87609.0,87574.0,1.14038888]
[1769364796226,0.08833889,87609.0,87573.0,0.13705827]
[1769364796227,0.01141174,87629.0,87591.0,1.14038888]
[1769364796449,0.0009215,87645.0,87600.0,1.14038888]
[1769364796450,0.37275442,87640.0,87600.0,1.14038888]
[1769364796665,0.0009215,87645.0,87613.0,0.13705827]
[1769364796881,0.0009215,87645.0,87614.0,1.14523617]
[1769364797157,0.01140706,87665.0,87628.0,1.14038888]
[1769364797361,0.05703037,87673.0,87634.0,1.27744715]
[1769364797362,0.01140615,87672.0,87634.0,1.27744715]
[1769364797577,0.37275442,87680.0,87648.0,0.13705827]
[1769364797787,0.38415822,87690.0,87649.0,1.14038888]
[1769364798000,0.37275442,87680.0,87650.0,0.27377259]
[1769364798215,0.37275442,87700.0,87665.0,0.27377259]
[1769364798433,0.37275442,87700.0,87650.0,0.64652701]
[1769364798434,0.37275442,87690.0,87666.0,1.14038888]
[1769364798654,0.37275442,87690.0,87648.0,0.00047471]
[1769364798655,1.6731,87675.0,87648.0,0.00047471]
[1769364798863,0.01140602,87673.0,87648.0,0.00047471]
[1769364799071,0.08833889,87677.0,87648.0,0.00047471]
[1769364799072,0.37275442,87658.0,87648.0,0.00047471]
[1769364799281,0.01140849,87654.0,87648.0,0.00047471]
[1769364799498,0.37275442,87658.0,87621.0,0.27377259]
[1769364799714,0.37275442,87658.0,87604.0,0.09097985]
[1769364799715,0.01141161,87630.0,87590.0,1.14038888]
[1769364799924,1.14654382,87652.0,87590.0,1.14038888]
[1769364799925,1.6214,87642.0,87605.0,0.27377259]
[1769364800136,1.6214,87642.0,87590.0,1.79833271]
[1769364800137,0.37275442,87640.0,87606.0,0.27377259]
[1769364800345,0.37275442,87660.0,87621.0,0.27377259]
[1769364800568,0.38416343,87650.0,87612.0,1.14038888]
[1769364800789,0.38416343,87650.0,87590.0,0.64652701]
[1769364800790,0.01141057,87638.0,87590.0,1.14038888]
[1769364801052,0.38416473,87640.0,87600.0,0.27377259]
[1769364801261,0.37322816,87650.0,87614.0,0.27377259]
[1769364801466,0.00047374,87650.0,87615.0,0.27377259]
[1769364801680,0.37322816,87650.0,87615.0,0.27377259]
[1769364801893,0.38463717,87650.0,87611.0,1.14038888]
[1769364802109,0.01141005,87642.0,87612.0,0.11160278]
[1769364802324,0.01141005,87642.0,87590.0,0.37375442]
[1769364802325,0.37275442,87621.0,87590.0,0.001]
[1769364802541,0.01141291,87620.0,87590.0,0.001]
[1769364802749,0.37275442,87610.0,87590.0,0.001]
[1769364802994,0.08833889,87626.0,87585.0,1.14038888]
[1769364803241,0.37275442,87620.0,87584.0,0.04568]
[1769364803466,0.13694409,87645.0,87547.0,0.020736]
[1769364803467,0.0114163,87594.0,87556.0,0.01142126]
[1769364803710,0.13694409,87613.0,87539.0,0.01142347]
[1769364803711,0.01141865,87576.0,87539.0,0.01142347]
[1769364803923,0.37275442,87570.0,87540.0,0.00685273]
[1769364804144,1.477,87579.0,87544.0,0.01142282]
[1769364804365,1.477,87579.0,87540.0,0.14379682]
[1769364804366,0.7915,87579.0,87540.0,0.01827607]
[1769364804584,0.08833889,87598.0,87556.0,1.27733297]
[1769364804802,0.08833889,87598.0,87561.0,1.14038888]
[1769364805016,0.08833889,87598.0,87565.0,0.01142008]
[1769364805232,0.04568,87613.0,87578.0,1.14038888]
[1769364805452,0.05705942,87628.0,87576.0,0.13694409]
[1769364805453,0.37275442,87630.0,87591.0,0.13694409]
[1769364805690,0.00047432,87630.0,87600.0,0.01141552]
[1769364805895,0.38416473,87640.0,87600.0,1.14038888]
[1769364805896,2.1905,87639.0,87600.0,1.14038888]
[1769364806133,0.00014218,87639.0,87610.0,0.01141422]
[1769364806344,0.1186,87648.0,87598.0,0.09097985]
[1769364806557,0.37275442,87640.0,87611.0,1.14038888]
[1769364806799,0.37275442,87640.0,87612.0,0.01141396]
[1769364807029,0.37275442,87650.0,87615.0,1.14038888]
[1769364807234,0.2382,87649.0,87615.0,1.15180245]
[1769364807467,0.38416343,87650.0,87615.0,1.14038888]
[1769364807676,0.37275442,87640.0,87616.0,0.11160278]
[1769364808306,0.37275442,87630.0,87593.0,0.01141643]
[1769364808519,0.37275442,87630.0,87592.0,0.01369441]
[1769364808727,0.01141109,87634.0,87597.0,0.01141591]
[1769364808953,0.37275442,87620.0,87592.0,0.01369441]
[1769364809163,0.37275442,87610.0,87592.0,0.01369441]
[1769364809389,0.13694409,87633.0,87575.0,0.09097985]
[1769364809390,0.311,87624.0,87587.0,1.15180609]
[1769364809610,0.13694409,87635.0,87596.0,0.01141604]
[1769364809821,0.37275442,87630.0,87597.0,0.01141591]
[1769364810057,0.37275442,87620.0,87595.0,0.01141617]
[1769364810283,0.37275442,87630.0,87595.0,0.01141617]
[1769364810512,0.37275442,87610.0,87583.0,0.01141774]
[1769364810734,0.37275442,87620.0,87589.0,0.01141695]
[1769364810963,0.37275442,87620.0,87585.0,1.15180636]
[1769364811203,0.05705924,87629.0,87585.0,1.15180636]
[1769364811204,0.17536,87666.0,87596.0,0.01141604]
[1769364811451,0.08833889,87650.0,87602.0,0.22830528]
[1769364811655,0.37275442,87640.0,87613.0,1.14038888]
[1769364811858,0.001,87630.0,87613.0,1.14038888]
[1769364812284,0.08881283,87650.0,87613.0,1.14038888]
[1769364812285,0.00047394,87650.0,87634.0,0.01141109]
[1769364812535,0.01140654,87669.0,87635.0,1.14038888]
[1769364812742,0.37275442,87660.0,87636.0,0.11160278]
[1769364812949,0.37275442,87660.0,87635.0,0.00047394]
[1769364813170,0.01140654,87669.0,87635.0,0.00047394]
[1769364813400,0.37275442,87660.0,87641.0,1.11712636]
[1769364813637,0.04112,87698.0,87635.0,0.00047394]
[1769364813871,0.01,87641.0,87610.0,0.01141422]
[1769364814097,0.01,87641.0,87603.0,0.02283053]
[1769364814098,0.00047394,87641.0,87638.0,1.11712636]
[1769364814304,0.05324545,87682.0,87639.0,0.11160278]
[1769364814305,0.5027,87674.0,87639.0,0.11160278]
[1769364814530,0.01140615,87672.0,87636.0,0.01141083]
[1769364814757,0.01140615,87672.0,87634.0,0.01141109]
[1769364814758,0.01140628,87671.0,87634.0,0.01141109]
[1769364814968,0.001,87660.0,87635.0,0.13694409]
[1769364815193,0.001,87660.0,87636.0,0.01483557]
[1769364815417,0.01154801,87674.0,87646.0,1.11712636]
[1769364815626,0.01154801,87674.0,87636.0,0.01483557]
[1769364815627,0.00014212,87674.0,87636.0,0.01483557]
[1769364815830,0.00014212,87674.0,87646.0,0.01140953]
[1769364816058,0.00014212,87674.0,87641.0,0.13694409]
[1769364816313,0.01140172,87706.0,87679.0,1.11712636]
[1769364816516,0.01140172,87706.0,87680.0,0.13694409]
[1769364816517,0.00014207,87706.0,87680.0,0.13694409]
[1769364816734,0.00014207,87706.0,87681.0,0.01370862]
[1769364816949,0.00014207,87706.0,87681.0,0.13694409]
[1769364817169,0.00014207,87706.0,87695.0,0.13694409]
[1769364817399,0.00014207,87706.0,87683.0,1.11712636]
[1769364817400,0.0113999,87720.0,87685.0,0.05091072]
[1769364817616,1.06835586,87720.0,87685.0,0.05105279]
[1769364817820,3.292983,87726.0,87687.0,0.01140419]
[1769364818055,0.0113999,87720.0,87686.0,0.01994016]
[1769364818287,0.01140042,87716.0,87686.0,0.15688425]
[1769364818490,0.01140224,87702.0,87685.0,0.00014207]
[1769364818708,0.01140198,87704.0,87695.0,0.001]
[1769364818916,0.01140198,87704.0,87660.0,0.01140771]
[1769364818917,0.01140354,87692.0,87656.0,0.01140823]
[1769364819123,0.01140341,87693.0,87670.0,0.13694409]
[1769364819338,0.01140445,87685.0,87656.0,0.13708621]
[1769364819559,0.01140419,87687.0,87656.0,0.13708621]
[1769364819784,0.01140393,87689.0,87656.0,0.13708621]
[1769364819994,0.01140315,87695.0,87656.0,0.13708621]
[1769364820292,0.0114038,87690.0,87656.0,0.13708621]
[1769364820575,0.09392545,87703.0,87657.0,0.11160278]
[1769364820576,0.01140471,87683.0,87657.0,0.11160278]
[1769364820779,1.06835586,87676.0,87656.0,0.00014212]
[1769364821011,0.05284545,87691.0,87656.0,0.00014212]
[1769364821012,1.06835586,87687.0,87656.0,0.00014212]
[1769364821209,0.001,87693.0,87678.0,0.01140536]
[1769364821436,0.01140094,87712.0,87691.0,0.13694409]
[1769364821644,0.04108,87705.0,87691.0,0.13694409]
[1769364821851,0.17532,87709.0,87692.0,0.13694409]
[1769364822064,0.04108,87704.0,87679.0,0.02206658]
[1769364822291,0.41068647,87720.0,87687.0,0.13694409]
[1769364822493,0.04108,87707.0,87687.0,0.13694409]
[1769364822705,0.04108,87707.0,87680.0,0.01590107]
[1769364822918,0.01140185,87705.0,87674.0,0.05091072]
[1769364823119,0.01140172,87706.0,87674.0,0.05091072]
[1769364823295,0.01140185,87705.0,87675.0,0.01878548]
[1769364823527,2.0827,87706.0,87675.0,0.01878548]
[1769364823944,0.04108,87707.0,87679.0,0.01140523]
[1769364824154,0.2164,87706.0,87687.0,1.25407045]
[1769364824356,0.2164,87706.0,87689.0,0.01140393]
[1769364824557,0.2164,87706.0,87690.0,0.11160278]
[1769364824768,0.00014202,87720.0,87692.0,0.01140354]
[1769364824970,0.00014202,87720.0,87690.0,0.11160278]
[1769364824971,0.2164,87705.0,87690.0,0.11160278]
[1769364825184,0.04108,87704.0,87690.0,0.11160278]
[1769364825404,0.01139497,87758.0,87722.0,1.128526]
[1769364825609,0.01139718,87741.0,87706.0,1.11712636]
[1769364825813,0.01139679,87744.0,87710.0,0.13694409]
[1769364826032,0.1029,87749.0,87715.0,0.01140055]
[1769364826249,0.1029,87749.0,87710.0,0.13694409]
[1769364826250,0.21636,87748.0,87724.0,0.13694409]
[1769364826476,0.00139527,87756.0,87725.0,1.13591184]
[1769364826684,0.00139527,87756.0,87738.0,0.14834166]
[1769364826893,0.04108,87755.0,87738.0,0.13694409]
[1769364827103,0.04108,87764.0,87752.0,0.13694409]
[1769364827345,0.01139107,87788.0,87752.0,0.13694409]
[1769364827640,0.04108,87769.0,87753.0,0.06460513]
[1769364827838,0.22791027,87799.0,87753.0,0.06460513]
[1769364827839,0.1542,87781.0,87754.0,0.13694409]
[1769364828061,0.05694681,87802.0,87770.0,0.13694409]
[1769364828273,1.06835586,87816.0,87761.0,0.05091072]
[1769364828274,0.04108,87788.0,87761.0,0.05091072]
[1769364828723,0.01138991,87797.0,87760.0,0.13694409]
[1769364828724,0.020736,87813.0,87774.0,0.13694409]
[1769364828921,0.84556385,87838.0,87769.0,0.01139354]
[1769364828922,0.01138848,87808.0,87788.0,0.01]
[1769364829146,0.01138744,87816.0,87780.0,0.28478267]
[1769364829397,0.04108,87815.0,87808.0,0.27339056]
[1769364829605,0.04108,87823.0,87808.0,0.27339056]
[1769364829823,0.04108,87823.0,87798.0,0.32430128]
[1769364830250,0.04108,87823.0,87804.0,0.27339056]
[1769364830251,0.04122201,87823.0,87804.0,0.27339056]
[1769364830514,0.04122201,87823.0,87805.0,0.03243013]
[1769364830711,0.04122201,87823.0,87798.0,0.05091072]
[1769364830936,0.04122201,87823.0,87800.0,0.01138952]
[1769364831165,0.04122201,87823.0,87798.0,0.05091072]
[1769364831398,0.01138848,87808.0,87778.0,0.05091072]
[1769364831601,0.01138874,87806.0,87778.0,0.05091072]
[1769364831821,0.01138991,87797.0,87759.0,0.01139484]
[1769364832027,1.06835586,87821.0,87759.0,0.01139484]
[1769364832028,0.01138965,87799.0,87776.0,0.27339056]
[1769364832248,0.01139004,87796.0,87760.0,0.05091072]
[1769364832451,0.01139004,87796.0,87776.0,0.27339056]
[1769364832689,0.01138627,87825.0,87796.0,0.01]
[1769364832906,0.04104,87814.0,87796.0,0.01]
[1769364833117,0.04104,87816.0,87796.0,0.01]
[1769364833333,0.04104,87816.0,87797.0,0.11160278]
[1769364833565,0.04118198,87816.0,87797.0,0.11160278]
[1769364833776,0.06832561,87815.0,87797.0,0.11160278]
[1769364833984,0.01138783,87813.0,87777.0,1.16803708]
[1769364834199,0.01138822,87810.0,87777.0,1.16803708]
[1769364834431,0.01138874,87806.0,87778.0,0.13668438]
[1769364834650,0.01138874,87806.0,87759.0,0.01139484]
[1769364834651,0.01138939,87801.0,87779.0,0.15544389]
[1769364834871,0.01139146,87785.0,87761.0,0.09815476]
[1769364835087,0.01138952,87800.0,87785.0,0.01]
[1769364835273,0.01138952,87800.0,87762.0,0.11160278]
[1769364835274,0.01139081,87790.0,87763.0,0.05091072]
[1769364835518,0.2162,87789.0,87773.0,0.13668438]
[1769364835726,0.04104,87790.0,87773.0,0.13668438]
[1769364835975,0.04104,87790.0,87789.0,0.01]
[1769364836459,0.01138757,87815.0,87779.0,0.01139224]
[1769364836679,0.04118196,87815.0,87783.0,0.05091072]
[1769364836895,0.0113877,87814.0,87784.0,0.1625135]
[1769364837098,0.04118196,87815.0,87794.0,0.13668438]
[1769364837321,0.001,87790.0,87784.0,0.1625135]
[1769364837530,0.01138926,87802.0,87790.0,0.001]
[1769364837745,0.01138874,87806.0,87790.0,0.001]
[1769364837951,0.01138835,87809.0,87785.0,0.13668438]
[1769364838158,0.01138874,87806.0,87785.0,0.13668438]
[1769364838367,0.01138835,87809.0,87785.0,0.13668438]
[1769364838590,0.04218196,87815.0,87786.0,0.01875951]
[1769364838805,0.01138822,87810.0,87787.0,0.13668438]
[1769364839260,0.04104,87810.0,87787.0,0.13668438]
[1769364839472,0.00014196,87815.0,87787.0,0.13668438]
[1769364839681,0.04104,87809.0,87794.0,0.13668438]
[1769364839899,0.54752647,87850.0,87794.0,0.13668438]
[1769364839900,0.020736,87841.0,87809.0,0.01]
[1769364840113,0.05284545,87857.0,87809.0,0.01]
[1769364840114,0.01138537,87832.0,87809.0,0.01]
[1769364840318,0.01138576,87829.0,87809.0,0.01]
[1769364840526,3.292983,87831.0,87787.0,0.001]
[1769364840736,1.06835586,87826.0,87788.0,0.13668438]
[1769364840958,0.01138796,87812.0,87782.0,0.05091072]
[1769364841230,1.06835586,87822.0,87782.0,0.05091072]
[1769364841480,0.0004733,87832.0,87623.0,0.1482]
[1769364841481,0.17508,87829.0,87814.0,0.13668438]
[1769364841678,0.05690793,87862.0,87828.0,0.13668438]
[1769364841884,0.0113807,87868.0,87828.0,0.13668438]
[1769364842093,0.45918,87867.0,87828.0,0.1875951]
[1769364842312,0.00014187,87868.0,87843.0,0.05691963]
[1769364842520,0.00014187,87868.0,87856.0,0.13668438]
[1769364842744,0.00014187,87868.0,87842.0,0.13668438]
[1769364842745,0.04104,87867.0,87843.0,0.01138394]
[1769364842927,0.04104,87867.0,87843.0,0.05091072]
[1769364843172,0.04104,87867.0,87827.0,0.05443775]
[1769364843388,0.04104,87867.0,87844.0,0.13668438]
[1769364843819,0.04104,87867.0,87831.0,0.05443775]
[1769364844031,0.01138135,87863.0,87831.0,0.05443775]
[1769364844242,0.2014,87866.0,87832.0,1.13313369]
[1769364844447,0.04104,87862.0,87831.0,0.05443775]
[1769364844652,0.17508,87861.0,87833.0,0.13668438]
[1769364844884,0.21612,87861.0,87833.0,0.13668438]
[1769364845650,0.21608,87860.0,87833.0,0.13668438]
[1769364845863,3.292983,87854.0,87822.0,0.13668438]
[1769364846103,3.292983,87854.0,87807.0,0.01138861]
[1769364846104,3.313719,87859.0,87759.0,0.04104]
[1769364846308,3.313719,87859.0,87801.0,0.13668438]
[1769364846309,0.0113855,87831.0,87801.0,0.13668438]
[1769364846532,0.01138589,87828.0,87801.0,0.13668438]
[1769364846720,0.01138498,87835.0,87801.0,0.13668438]
[1769364846967,0.34244932,87861.0,87783.0,1.13313369]
[1769364846968,0.22771339,87830.0,87794.0,0.05443775]
[1769364847178,0.1,87870.0,87783.0,1.13313369]
[1769364847427,0.01138705,87819.0,87799.0,0.13668438]
[1769364847634,0.01138705,87819.0,87777.0,0.0113925]
[1769364847635,0.61349307,87810.0,87785.0,0.0004733]
[1769364847844,0.011389,87804.0,87785.0,0.0004733]
[1769364848055,0.43798848,87808.0,87785.0,0.0004733]
[1769364848281,0.17504,87809.0,87786.0,0.13668438]
[1769364848504,0.17504,87809.0,87787.0,0.01371577]
[1769364848740,0.17504,87812.0,87787.0,0.13668438]
[1769364848953,0.01138653,87823.0,87809.0,0.01]
[1769364849170,0.01138744,87816.0,87785.0,0.0004733]
[1769364849373,0.4204,87823.0,87788.0,0.14807545]
[1769364849575,0.04104,87815.0,87789.0,0.01485488]
[1769364850002,0.04104,87814.0,87789.0,0.01485488]
[1769364850489,0.04104,87814.0,87785.0,0.0004733]
[1769364850490,0.01138822,87810.0,87785.0,0.0004733]
[1769364850691,0.01138822,87810.0,87740.0,0.45589166]
[1769364850692,0.01138926,87802.0,87788.0,0.001]
[1769364850921,0.020736,87817.0,87788.0,0.00114196]
[1769364851117,0.21608,87816.0,87788.0,0.00014196]
[1769364851402,0.0113864,87824.0,87788.0,0.00014196]
[1769364851603,3.292983,87829.0,87788.0,0.00014196]
[1769364851604,0.01138576,87829.0,87792.0,0.01139055]
[1769364851819,0.04104,87823.0,87793.0,0.01492169]
[1769364852033,0.1784,87822.0,87793.0,0.01492169]
[1769364852718,0.01138511,87834.0,87794.0,0.0569513]
[1769364852918,0.020736,87852.0,87822.0,0.01]
[1769364852919,0.04104,87832.0,87822.0,0.01]
[1769364853129,0.020736,87856.0,87822.0,0.01]
[1769364853130,0.01138316,87849.0,87822.0,0.01]
[1769364853344,0.04104,87838.0,87822.0,0.01]
[1769364853556,0.04104,87837.0,87822.0,0.01]
[1769364853764,0.04104,87837.0,87803.0,0.14807351]
[1769364853993,0.04104,87837.0,87804.0,0.02708496]
[1769364854196,0.01138459,87838.0,87804.0,0.02708496]
[1769364854433,0.0113855,87831.0,87804.0,0.02708496]
[1769364854644,0.01138524,87833.0,87803.0,0.00014196]
[1769364854847,0.0113855,87831.0,87803.0,0.00014196]
[1769364855050,0.0113855,87831.0,87804.0,0.13668438]
[1769364855268,0.0113855,87831.0,87803.0,0.00014196]
[1769364855696,0.01138614,87826.0,87803.0,0.00014196]
[1769364855896,0.01138589,87828.0,87803.0,0.00014196]
[1769364856316,0.0113855,87831.0,87803.0,0.00014196]
[1769364856549,0.01138614,87826.0,87803.0,0.00014196]
[1769364856784,0.01138602,87827.0,87803.0,0.00014196]
[1769364856992,0.01138627,87825.0,87803.0,0.00014196]
[1769364857205,0.01138602,87827.0,87803.0,0.00014196]
[1769364857426,0.01138653,87823.0,87803.0,0.00014196]
[1769364857640,0.175,87826.0,87803.0,0.00014196]
[1769364857854,0.041,87822.0,87804.0,0.13668438]
[1769364858133,0.041,87822.0,87805.0,0.01492161]
[1769364858561,0.041,87822.0,87803.0,0.00114196]
[1769364858771,0.05036821,87826.0,87803.0,0.00114196]
[1769364858772,0.175,87835.0,87803.0,0.00114196]
[1769364858980,0.041,87827.0,87803.0,0.00014196]
[1769364859417,0.001,87823.0,87803.0,0.00014196]
[1769364859636,0.01138731,87817.0,87803.0,0.00014196]
[1769364859852,0.01138627,87825.0,87803.0,0.00014196]
[1769364860056,0.01138692,87820.0,87803.0,0.00014196]
[1769364860263,0.01138679,87821.0,87803.0,0.00014196]
[1769364860538,0.041,87827.0,87803.0,0.00014196]
[1769364860757,0.11300676,87826.0,87803.0,0.00014196]
[1769364862063,0.01138731,87817.0,87803.0,0.00014196]
[1769364862268,0.05693139,87825.0,87803.0,0.00014196]
[1769364862484,0.01138666,87822.0,87803.0,0.00014196]
[1769364862692,0.01138679,87821.0,87803.0,0.00014196]
[1769364862911,0.01138666,87822.0,87803.0,0.00014196]
[1769364862912,3.30436927,87825.0,87803.0,0.00014196]
[1769364863123,0.1130279,87824.0,87803.0,0.00014196]
[1769364863352,0.001,87817.0,87803.0,0.00014196]
[1769364863559,0.00932083,87827.0,87803.0,0.00014196]
[1769364863778,0.11303111,87826.0,87803.0,0.00014196]
[1769364864237,0.001,87825.0,87803.0,0.00014196]
[1769364864890,0.041,87824.0,87803.0,0.00014196]
[1769364865106,0.001,87825.0,87803.0,0.00014196]
[1769364865308,3.292983,87833.0,87804.0,0.11160278]
[1769364865519,3.292983,87831.0,87804.0,0.11160278]
[1769364865739,0.11307894,87830.0,87804.0,0.11160278]
[1769364865958,3.292983,87829.0,87804.0,0.11160278]
[1769364866178,0.01138537,87832.0,87805.0,0.11160278]
[1769364866179,3.292983,87827.0,87805.0,0.11160278]
[1769364866385,0.0113864,87824.0,87803.0,0.00014196]
[1769364866592,0.01138692,87820.0,87803.0,0.00014196]
[1769364866805,0.01138679,87821.0,87803.0,0.00014196]
[1769364867227,0.22770599,87833.0,87803.0,0.00014196]
[1769364867455,0.0113877,87814.0,87803.0,0.00014196]
[1769364867902,0.0113877,87814.0,87783.0,0.05882925]
[1769364867903,0.01138835,87809.0,87783.0,0.05882925]
[1769364868135,0.00014196,87803.0,87770.0,0.05882925]
[1769364868349,0.041,87802.0,87770.0,0.05882925]
[1769364868559,0.041,87802.0,87771.0,1.15191831]
[1769364868766,0.041,87802.0,87772.0,0.11160278]
[1769364868977,0.175,87801.0,87779.0,0.13668438]
[1769364869397,0.00014183,87809.0,87782.0,1.15191831]
[1769364869624,0.041,87802.0,87782.0,1.15191831]
[1769364871110,0.00014183,87809.0,87779.0,0.13668438]
[1769364871321,0.04104,87801.0,87780.0,0.01594699]
[1769364871536,0.04104,87800.0,87780.0,0.13668438]
[1769364871745,0.04104,87800.0,87772.0,1.26352109]
[1769364871970,0.04104,87800.0,87781.0,0.13668438]
[1769364872210,0.01138991,87797.0,87770.0,0.05882925]
[1769364872423,0.05242952,87800.0,87771.0,0.14256731]
[1769364872424,0.11304178,87796.0,87771.0,0.14256731]
[1769364872627,0.01139004,87796.0,87771.0,0.14256731]
[1769364872833,0.01138991,87797.0,87771.0,0.14256731]
[1769364873039,0.01139146,87785.0,87754.0,0.05759968]
[1769364873250,0.03575449,87793.0,87759.0,0.13668438]
[1769364873251,0.01139107,87788.0,87759.0,0.13668438]
[1769364873510,0.01139198,87781.0,87754.0,0.05759968]
[1769364873731,0.01139172,87783.0,87759.0,0.13668438]
[1769364874011,0.01139185,87782.0,87771.0,0.001]
[1769364874211,0.01139224,87779.0,87747.0,0.13668438]
[1769364874419,0.16613208,87810.0,87747.0,0.13668438]
[1769364874420,0.06835489,87778.0,87747.0,0.13668438]
[1769364874632,0.01139289,87774.0,87754.0,0.001]
[1769364874835,0.01139276,87775.0,87754.0,0.001]
[1769364875042,0.06835818,87773.0,87754.0,0.001]
[1769364875247,0.04104,87772.0,87754.0,0.001]
[1769364875466,0.04104,87772.0,87754.0,0.02597609]
[1769364875896,0.04104,87772.0,87754.0,0.02497609]
[1769364876355,0.04104,87771.0,87747.0,0.00047377]
[1769364876580,0.04104,87771.0,87748.0,0.13668438]
[1769364877157,0.01139341,87770.0,87747.0,0.00047377]
[1769364877243,0.01139367,87768.0,87747.0,0.00047377]
[1769364877502,0.04104,87771.0,87748.0,0.13668438]
[1769364877728,0.05243328,87771.0,87749.0,0.01371582]
[1769364877876,0.04104,87771.0,87749.0,0.01371582]
[1769364879126,0.01139393,87766.0,87747.0,0.00047377]
[1769364879349,0.01139471,87760.0,87747.0,0.00047377]
[1769364879588,0.7,87764.0,87747.0,0.00047377]
[1769364880021,0.01139523,87756.0,87747.0,0.00047377]
[1769364880217,0.01139484,87759.0,87749.0,0.00083214]
[1769364880421,0.0113951,87757.0,87749.0,0.00083214]
[1769364880642,0.38401333,87760.0,87747.0,0.00047377]
[1769364880953,0.01139484,87759.0,87747.0,0.00047377]
[1769364881207,0.38401333,87760.0,87747.0,0.00047377]
[1769364881411,0.37261862,87760.0,87747.0,0.00047377]
[1769364881615,0.01139432,87763.0,87747.0,0.00047377]
[1769364881820,0.37261862,87760.0,87747.0,0.00047377]
[1769364882431,0.7,87764.0,87760.0,0.01]
[1769364882632,0.38401073,87780.0,87760.0,0.01]
[1769364882633,0.7,87761.0,87760.0,0.01]
[1769364882836,0.7,87761.0,87747.0,1.15794769]
[1769364883038,0.7,87761.0,87748.0,0.11160278]
[1769364883451,0.04104,87767.0,87748.0,0.11160278]
[1769364883863,0.37261862,87760.0,87748.0,0.11160278]
[1769364884045,0.37261862,87760.0,87747.0,0.00147377]
[1769364884255,0.04104,87767.0,87747.0,0.00147377]
[1769364884467,0.37261862,87760.0,87747.0,0.00147377]
[1769364884699,0.01139575,87752.0,87747.0,0.00147377]
[1769364884901,0.01139549,87754.0,87747.0,0.00147377]
[1769364884902,0.01139588,87751.0,87747.0,0.00124317]
[1769364885118,0.01139601,87750.0,87728.0,0.05759968]
[1769364885324,0.01139782,87736.0,87714.0,0.05759968]
[1769364885524,0.37261862,87738.0,87714.0,1.2150736]
[1769364885963,0.38448743,87750.0,87714.0,1.1688746]
[1769364886165,0.01139679,87744.0,87718.0,0.13668438]
[1769364886370,0.37261862,87740.0,87719.0,0.11160278]
[1769364886539,0.38401593,87740.0,87719.0,0.11160278]
[1769364886762,0.37261862,87730.0,87719.0,0.11160278]
[1769364886959,0.37261862,87730.0,87700.0,0.05759968]
[1769364887178,0.37261862,87730.0,87708.0,0.13668438]
[1769364887377,0.37261862,87730.0,87718.0,0.001]
[1769364888357,0.04104,87743.0,87730.0,0.01]
[1769364888824,0.37261862,87740.0,87722.0,1.15747392]
[1769364889035,0.37261862,87740.0,87723.0,0.11160278]
[1769364893598,0.7,87729.0,87707.0,0.000565]
[1769364893826,0.7,87729.0,87707.0,0.04185415]
[1769364894049,0.37261862,87720.0,87710.0,0.001]
[1769364894274,0.01140003,87719.0,87710.0,0.001]
[1769364894485,0.01140003,87719.0,87707.0,0.000565]
[1769364894486,0.01140016,87718.0,87707.0,0.000565]
[1769364894709,0.01140003,87719.0,87707.0,0.000565]
[1769364894950,0.37261862,87720.0,87707.0,0.000565]
[1769364895389,0.04104,87724.0,87707.0,0.00070698]
[1769364895604,0.01139912,87726.0,87707.0,0.00170698]
[1769364895833,0.71139873,87729.0,87707.0,0.00170698]
[1769364895834,0.37261862,87720.0,87707.0,0.00170698]
[1769364896126,0.37261862,87720.0,87691.0,0.05759968]
[1769364896127,0.37261862,87707.0,87691.0,0.05759968]
[1769364896334,0.37261862,87707.0,87691.0,0.0577417]
[1769364896768,0.01139938,87724.0,87695.0,1.15747392]
[1769364896966,0.43964605,87730.0,87698.0,1.2150736]
[1769364897179,0.01139899,87727.0,87700.0,1.2150736]
[1769364897405,0.17512,87728.0,87701.0,0.05759968]
[1769364897613,0.18651886,87728.0,87701.0,0.05759968]
[1769364897825,0.04104,87728.0,87701.0,0.05759968]
[1769364898029,0.37261862,87711.0,87691.0,0.00014202]
[1769364898246,0.37261862,87711.0,87692.0,0.11160278]